bitfinex-derivatives/quotes_BNBF0:USTF0_20250220
["timestamp","ask_amount","ask_price","bid_price","bid_amount"]
[1740070394662,2.23215659,648.36,647.67,1.14407288]
[1740070394864,2.23215659,648.33,647.67,1.14407288]
[1740070395959,2.23215659,648.33,647.72,1.14407288]
[1740070396462,1.392,648.37,647.72,1.14407288]
[1740070397664,1.392,648.37,647.84,1.14407288]
[1740070400662,1.392,648.37,647.1,1.14407288]
[1740070400866,1.392,648.37,647.22,0.30901393]
[1740070403268,1.392,648.37,647.27,1.14407288]
[1740070403468,1.392,648.37,647.28,0.30898529]
[1740070406970,1.736,648.48,647.28,0.30898529]
[1740070410275,1.736,648.48,647.35,1.14407288]
[1740070410471,1.736,648.48,647.36,0.3089471]
[1740070412573,4.679,648.67,647.36,0.3089471]
[1740070412773,5.29110792,648.66,647.36,0.3089471]
[1740070412968,3.0642259,648.65,647.36,0.3089471]
[1740070413174,3.0642259,648.64,647.36,0.3089471]
[1740070413373,3.0642259,648.63,647.48,1.14407288]
[1740070413573,3.0642259,648.62,647.48,1.14407288]
[1740070413875,3.0642259,648.61,647.48,1.14407288]
[1740070414070,3.0642259,648.6,647.48,1.14407288]
[1740070414270,3.0642259,648.59,647.48,1.14407288]
[1740070414576,3.0642259,648.58,647.48,1.14407288]
[1740070414876,3.0642259,648.57,647.48,1.14407288]
[1740070415079,3.0642259,648.56,647.48,1.14407288]
[1740070415270,2.22688202,648.58,647.48,1.14407288]
[1740070415271,3.0642259,648.55,647.48,1.14407288]
[1740070415474,3.0642259,648.54,647.48,1.14407288]
[1740070415676,3.0642259,648.53,647.48,1.14407288]
[1740070415876,3.0642259,648.52,647.43,1.14407288]
[1740070416175,5.29110792,648.51,647.43,1.14407288]
[1740070416371,3.0642259,648.5,647.43,1.14407288]
[1740070416572,3.0642259,648.49,647.43,1.14407288]
[1740070416777,3.0642259,648.48,647.43,1.14407288]
[1740070416975,3.0642259,648.47,647.43,1.14407288]
[1740070417177,3.0642259,648.46,647.43,1.14407288]
[1740070417377,3.0642259,648.45,647.43,1.14407288]
[1740070417577,3.0642259,648.44,647.43,1.14407288]
[1740070417782,3.0642259,648.43,647.43,1.14407288]
[1740070417981,3.0642259,648.42,647.43,1.14407288]
[1740070418187,3.0642259,648.41,647.43,1.14407288]
[1740070418379,2.22688202,648.45,647.76,1.14407288]
[1740070418579,3.06837855,648.44,647.76,1.14407288]
[1740070418777,3.06837855,648.43,647.76,1.14407288]
[1740070418978,3.06837855,648.42,647.76,1.14407288]
[1740070419177,2.22688202,648.42,647.76,1.14407288]
[1740070419578,3.06941851,648.41,647.76,1.14407288]
[1740070419882,3.06941851,648.4,647.76,1.14407288]
[1740070420083,3.06941851,648.39,647.76,1.14407288]
[1740070420385,3.06941851,648.38,647.76,1.14407288]
[1740070420585,1.616,648.63,647.76,1.14407288]
[1740070420781,3.07047206,648.62,647.76,1.14407288]
[1740070421080,3.07047206,648.61,647.76,1.14407288]
[1740070421285,3.07047206,648.6,647.76,1.14407288]
[1740070421484,3.07047206,648.59,647.76,1.14407288]
[1740070421785,3.07047206,648.58,647.76,1.14407288]
[1740070422086,3.07047206,648.57,647.76,1.14407288]
[1740070422286,3.07047206,648.56,647.72,1.14407288]
[1740070422485,3.07047206,648.55,647.72,1.14407288]
[1740070422786,3.07047206,648.54,647.72,1.14407288]
[1740070422985,3.07047206,648.53,647.72,1.14407288]
[1740070423286,3.07047206,648.52,647.72,1.14407288]
[1740070423486,3.07047206,648.51,647.72,1.14407288]
[1740070423685,3.07047206,648.5,647.72,1.14407288]
[1740070423987,3.07047206,648.49,647.44,1.14407288]
[1740070424181,3.07047206,648.48,647.44,1.14407288]
[1740070424380,3.07047206,648.47,647.44,1.14407288]
[1740070424578,3.07047206,648.46,647.44,1.14407288]
[1740070424785,3.07047206,648.45,647.44,1.14407288]
[1740070424985,3.07047206,648.44,647.44,1.14407288]
[1740070425186,3.07047206,648.43,647.44,1.14407288]
[1740070425484,3.07047206,648.42,647.44,1.14407288]
[1740070425682,3.07047206,648.41,647.44,1.14407288]
[1740070425986,3.07047206,648.4,647.44,1.14407288]
[1740070426188,3.07047206,648.39,647.44,1.14407288]
[1740070426387,3.07047206,648.38,647.44,1.14407288]
[1740070426581,5.30203942,648.37,647.44,1.14407288]
[1740070426781,3.07047206,648.36,647.44,1.14407288]
[1740070426988,3.07047206,648.35,647.44,1.14407288]
[1740070427185,3.07047206,648.34,647.44,1.14407288]
[1740070427386,3.07047206,648.33,647.44,1.14407288]
[1740070427581,3.07047206,648.32,647.44,1.14407288]
[1740070427787,3.07047206,648.31,647.44,1.14407288]
[1740070427987,3.07047206,648.3,647.44,1.14407288]
[1740070428287,3.07047206,648.29,647.39,1.14407288]
[1740070428585,3.07047206,648.28,647.39,1.14407288]
[1740070428786,3.07047206,648.27,647.39,1.14407288]
[1740070428986,2.23156736,648.3,647.39,1.14407288]
[1740070429188,3.07742491,648.29,647.39,1.14407288]
[1740070429387,3.07742491,648.28,647.39,1.14407288]
[1740070429587,3.07742491,648.27,647.39,1.14407288]
[1740070429787,3.07742491,648.26,647.39,1.14407288]
[1740070429986,5.30899227,648.25,647.39,1.14407288]
[1740070430188,3.07742491,648.24,647.39,1.14407288]
[1740070430390,3.07742491,648.24,647.19,1.60978205]
[1740070430391,3.07742491,648.23,647.64,1.14407288]
[1740070430585,2.23156736,648.25,647.64,1.14407288]
[1740070430787,3.07875126,648.24,647.64,1.14407288]
[1740070430987,3.07875126,648.23,647.64,1.14407288]
[1740070431183,3.07875126,648.22,647.64,1.14407288]
[1740070431384,3.07875126,648.21,647.64,1.14407288]
[1740070431587,3.07875126,648.2,647.64,1.14407288]
[1740070431786,3.07875126,648.19,647.64,1.14407288]
[1740070432092,3.07875126,648.18,647.64,1.14407288]
[1740070432292,3.07875126,648.17,647.64,1.14407288]
[1740070432591,3.07875126,648.16,647.64,1.14407288]
[1740070432792,3.07875126,648.15,647.64,1.14407288]
[1740070432994,2.23156736,648.18,647.64,1.14407288]
[1740070433292,3.07892032,648.17,647.64,1.14407288]
[1740070433495,3.07892032,648.16,647.55,1.14407288]
[1740070433694,3.07892032,648.15,647.55,1.14407288]
[1740070433893,2.23156736,648.16,647.55,1.14407288]
[1740070434189,3.07844325,648.15,647.55,1.14407288]
[1740070434394,2.23156736,648.16,647.55,1.14407288]
[1740070435396,2.08,648.47,647.55,1.14407288]
[1740070435593,3.07760105,648.46,647.55,1.14407288]
[1740070435896,3.07760105,648.45,647.48,1.14407288]
[1740070436091,3.07760105,648.44,647.48,1.14407288]
[1740070436291,3.07760105,648.43,647.48,1.14407288]
[1740070436492,3.07760105,648.42,647.48,1.14407288]
[1740070436690,3.07760105,648.41,647.48,1.14407288]
[1740070436897,3.07760105,648.4,647.48,1.14407288]
[1740070437198,3.07760105,648.39,647.48,1.14407288]
[1740070437398,3.07760105,648.38,647.48,1.14407288]
[1740070437598,5.31437777,648.37,647.48,1.14407288]
[1740070437891,3.07760105,648.36,647.48,1.14407288]
[1740070438091,3.07760105,648.35,647.32,1.14407288]
[1740070438296,3.07760105,648.34,647.32,1.14407288]
[1740070438491,3.07760105,648.33,647.32,1.14407288]
[1740070438691,3.07760105,648.32,647.32,1.14407288]
[1740070438896,3.07760105,648.31,647.32,1.14407288]
[1740070439098,3.07760105,648.3,647.32,1.14407288]
[1740070439290,3.07760105,648.29,647.32,1.14407288]
[1740070439496,3.07760105,648.28,647.32,1.14407288]
[1740070439697,3.07760105,648.27,647.32,1.14407288]
[1740070439897,3.07760105,648.26,647.32,1.14407288]
[1740070440098,3.07760105,648.25,647.32,1.14407288]
[1740070440298,3.07760105,648.24,646.99,1.60980687]
[1740070440497,3.07760105,648.23,646.99,1.60980687]
[1740070440693,3.07760105,648.22,646.99,1.60980687]
[1740070440895,3.07760105,648.21,646.99,1.60980687]
[1740070441095,3.07760105,648.2,646.99,1.60980687]
[1740070441298,3.07760105,648.19,646.99,1.60980687]
[1740070441493,3.07760105,648.18,646.99,1.60980687]
[1740070441694,3.07760105,648.17,646.99,1.60980687]
[1740070441892,3.07760105,648.16,646.99,1.60980687]
[1740070442097,3.07760105,648.15,646.99,1.60980687]
[1740070442296,3.07760105,648.14,646.99,1.60980687]
[1740070442498,3.07760105,648.13,646.99,1.60980687]
[1740070442698,3.07760105,648.12,646.85,1.14407288]
[1740070442899,3.07760105,648.11,646.87,1.61052705]
[1740070443095,3.07760105,648.1,646.87,1.61052705]
[1740070443301,2.23677672,648.13,646.87,1.61052705]
[1740070443302,3.07760105,648.09,646.87,1.61052705]
[1740070443501,3.07760105,648.08,646.87,1.61052705]
[1740070443703,3.07760105,648.07,646.87,1.61052705]
[1740070444002,3.07760105,648.06,646.87,1.61052705]
[1740070444198,3.07760105,648.05,646.87,1.61052705]
[1740070444401,3.07760105,648.04,646.87,1.61052705]
[1740070444595,3.07760105,648.03,646.87,1.61052705]
[1740070444798,3.07760105,648.02,646.87,1.61052705]
[1740070444997,3.07760105,648.01,646.87,1.61052705]
[1740070445204,3.07760105,648.0,646.87,1.61052705]
[1740070445404,3.07760105,647.99,646.87,1.61052705]
[1740070445703,3.07760105,647.98,646.87,1.61052705]
[1740070445897,2.23677672,648.02,646.87,1.61052705]
[1740070445898,3.07760105,647.97,646.87,1.61052705]
[1740070446098,3.07760105,647.96,646.87,1.61052705]
[1740070446302,3.07760105,647.95,646.87,1.61052705]
[1740070446504,3.07760105,647.94,646.67,1.14407288]
[1740070446704,3.07760105,647.93,646.67,1.14407288]
[1740070446901,3.07760105,647.92,646.78,1.61077553]
[1740070447107,3.07760105,647.92,646.67,1.14407288]
[1740070447108,3.07760105,647.91,646.67,1.14407288]
[1740070447306,3.07760105,647.9,646.68,1.61095573]
[1740070447500,3.07760105,647.89,646.68,1.61095573]
[1740070447704,3.07760105,647.88,646.68,1.61095573]
[1740070447905,3.07760105,647.87,646.68,1.61095573]
[1740070448206,3.07760105,647.86,646.68,1.61095573]
[1740070448402,3.07760105,647.85,646.68,1.61095573]
[1740070448603,3.07760105,647.84,646.68,1.61095573]
[1740070448803,3.07760105,647.83,646.68,1.61095573]
[1740070449002,3.07760105,647.82,646.68,1.61095573]
[1740070449209,3.07760105,647.81,646.68,1.61095573]
[1740070449404,3.07760105,647.8,646.68,1.61095573]
[1740070449606,3.07760105,647.79,646.68,1.61095573]
[1740070449806,0.639,647.82,646.68,1.61095573]
[1740070449807,3.07760105,647.78,646.68,1.61095573]
[1740070450002,3.07760105,647.77,646.68,1.61095573]
[1740070450208,3.07760105,647.76,646.68,1.61095573]
[1740070450409,3.07760105,647.75,646.68,1.61095573]
[1740070450609,3.07760105,647.74,646.58,1.14407288]
[1740070450809,3.07760105,647.73,646.58,1.14407288]
[1740070451009,3.07760105,647.72,646.62,1.61127274]
[1740070451203,3.07760105,647.71,646.62,1.61127274]
[1740070451406,3.07760105,647.7,646.62,1.61127274]
[1740070451604,3.77577672,647.78,646.62,1.61127274]
[1740070452007,3.99777672,647.77,646.36,1.14407288]
[1740070452209,5.99077672,647.77,646.37,0.3094203]
[1740070452409,5.99077672,647.77,646.53,1.6114033]
[1740070452606,5.99077672,647.77,646.37,0.3094203]
[1740070452810,5.99077672,647.77,646.53,1.61146548]
[1740070453006,5.99077672,647.77,646.37,0.3094203]
[1740070454012,3.754,647.77,646.37,0.3094203]
[1740070454310,3.754,647.77,646.38,1.6115712]
[1740070458810,5.25564477,647.76,646.38,1.6115712]
[1740070459014,3.04302869,647.75,646.38,1.6115712]
[1740070459315,2.21261608,647.76,646.38,1.6115712]
[1740070459516,3.04182019,647.75,646.38,1.6115712]
[1740070459715,3.04183901,647.74,646.38,1.6115712]
[1740070459917,3.04183901,647.73,646.38,1.6115712]
[1740070460216,3.04183901,647.72,646.38,1.6115712]
[1740070460412,3.04183901,647.71,646.38,1.92098671]
[1740070460615,3.04183901,647.7,646.38,1.92098671]
[1740070460916,3.04183901,647.69,646.39,0.30941072]
[1740070461117,3.04183901,647.68,646.39,0.30941072]
[1740070461312,2.21261608,647.72,646.39,0.30941072]
[1740070461617,3.03959907,647.71,646.39,0.30941072]
[1740070461818,3.03959907,647.7,646.39,0.30941072]
[1740070462018,3.03959907,647.69,646.39,0.30941072]
[1740070462212,3.03959907,647.68,646.39,0.30941072]
[1740070462413,3.03959907,647.67,646.39,0.30941072]
[1740070462620,3.03959907,647.66,646.39,0.30941072]
[1740070462917,2.21261608,647.7,646.39,0.30941072]
[1740070462918,3.03959907,647.65,646.39,0.30941072]
[1740070463118,3.03959907,647.64,646.39,0.30941072]
[1740070463319,3.03959907,647.63,646.39,0.30941072]
[1740070463519,3.03963738,647.62,646.39,0.30941072]
[1740070463819,2.21261608,647.7,646.39,0.30941072]
[1740070464020,3.03967519,647.69,646.39,0.30941072]
[1740070464217,3.03967519,647.68,646.39,0.30941072]
[1740070464421,3.03967519,647.67,646.39,0.30941072]
[1740070464619,2.21261608,647.69,646.39,0.30941072]
[1740070464817,3.03987965,647.68,646.39,0.30941072]
[1740070465018,3.03987965,647.67,646.39,0.30941072]
[1740070465218,2.21261608,647.69,646.39,0.30941072]
[1740070465420,3.0401073,647.68,646.39,0.30941072]
[1740070465615,3.0401073,647.67,646.39,0.30941072]
[1740070465817,2.21261608,647.69,646.39,0.30941072]
[1740070466015,3.04003688,647.68,646.39,1.4534836]
[1740070466220,3.04003688,647.67,646.39,1.4534836]
[1740070466422,3.04003688,647.66,646.39,1.4534836]
[1740070466621,2.21261608,647.67,646.39,1.4534836]
[1740070467822,3.265,647.77,646.39,1.4534836]
[1740070468121,3.04022019,647.76,646.39,1.4534836]
[1740070468422,3.04022019,647.75,646.67,1.14407288]
[1740070468616,3.04022019,647.74,646.67,1.14407288]
[1740070468815,3.04022019,647.73,646.67,1.14407288]
[1740070469017,3.04022019,647.72,646.67,1.14407288]
[1740070469322,3.04022019,647.71,646.67,1.14407288]
[1740070469516,3.04022019,647.7,646.67,1.14407288]
[1740070469722,2.21067973,647.75,646.67,1.14407288]
[1740070469917,3.04147661,647.74,646.67,1.14407288]
[1740070470124,3.04147661,647.73,646.67,1.14407288]
[1740070470417,2.2,647.73,646.67,1.14407288]
[1740070471024,2.2,647.73,646.79,1.14407288]
[1740070472720,2.2,647.73,646.86,1.14407288]
[1740070475326,2.2,647.73,647.05,1.14407288]
[1740070477628,2.2,647.73,646.75,1.14407288]
[1740070480029,2.2,647.73,646.6,1.61100545]
[1740070480229,2.2,647.73,646.61,0.30930545]
[1740070484323,1.504,647.77,646.61,0.30930545]
[1740070485030,1.676,647.82,646.83,1.14407288]
[1740070485630,3.05710301,647.81,646.83,1.14407288]
[1740070485830,1.676,647.82,646.83,1.14407288]
[1740070486024,3.0571344,647.81,646.83,1.14407288]
[1740070486227,1.676,647.82,646.83,1.14407288]
[1740070487530,1.676,647.82,647.22,1.14407288]
[1740070490231,3.06230281,647.81,647.22,1.14407288]
[1740070490424,2.22719926,647.81,647.22,1.14407288]
[1740070490630,2.22719926,647.81,647.24,1.14407288]
[1740070491531,1.676,647.82,647.24,1.14407288]
[1740070491731,3.06466432,647.81,647.24,1.14407288]
[1740070491924,2.029,647.92,647.24,1.14407288]
[1740070492128,3.06477814,647.91,647.24,1.14407288]
[1740070492328,3.06477814,647.9,647.24,1.14407288]
[1740070492529,3.06477814,647.89,647.24,1.14407288]
[1740070492728,3.06477814,647.88,647.24,1.14407288]
[1740070492931,3.06477814,647.87,647.24,1.14407288]
[1740070493131,3.06477814,647.86,647.24,1.14407288]
[1740070493439,3.06477814,647.85,646.73,1.14407288]
[1740070493631,3.06477814,647.84,646.73,1.14407288]
[1740070493831,3.06477814,647.83,646.73,1.14407288]
[1740070494027,3.06477814,647.82,646.73,1.14407288]
[1740070494229,3.06477814,647.81,646.73,1.14407288]
[1740070494427,3.06808846,647.8,646.73,1.14407288]
[1740070494735,3.06808846,647.79,646.73,1.14407288]
[1740070495033,3.06808846,647.78,646.73,1.14407288]
[1740070495228,3.06808846,647.77,646.73,1.14407288]
[1740070495427,3.06808846,647.76,646.73,1.14407288]
[1740070495633,3.06808846,647.75,646.73,1.14407288]
[1740070495829,2.22815301,647.77,646.79,1.14407288]
[1740070495830,3.06808846,647.74,646.79,1.14407288]
[1740070496031,2.22815301,647.77,646.79,1.14407288]
[1740070496233,3.06987562,647.76,646.79,1.14407288]
[1740070496433,2.22815301,647.77,646.79,1.14407288]
[1740070496633,3.07062072,647.76,646.79,1.14407288]
[1740070496933,2.22815301,647.77,646.79,1.14407288]
[1740070497134,0.639,647.92,646.79,1.14407288]
[1740070497335,3.07150917,647.91,646.79,1.14407288]
[1740070497530,3.07150917,647.9,646.79,1.14407288]
[1740070497733,3.07150917,647.89,646.79,1.14407288]
[1740070497930,3.07150917,647.88,646.79,1.14407288]
[1740070498135,3.07150917,647.87,646.79,1.14407288]
[1740070498335,3.07150917,647.86,646.82,1.14407288]
[1740070498532,3.07150917,647.85,646.82,1.14407288]
[1740070498737,3.07150917,647.84,646.82,1.14407288]
[1740070498943,3.07150917,647.83,646.82,1.14407288]
[1740070499237,3.07150917,647.82,646.82,1.14407288]
[1740070499431,3.07150917,647.81,646.82,1.14407288]
[1740070499636,3.07150917,647.8,646.82,1.14407288]
[1740070499832,3.07150917,647.79,646.82,1.14407288]
[1740070500033,3.07150917,647.78,646.82,1.14407288]
[1740070500235,2.23300785,647.81,646.82,1.14407288]
[1740070500435,3.07218584,647.8,646.82,1.14407288]
[1740070500636,3.07218584,647.79,646.89,1.14407288]
[1740070500838,3.07218584,647.78,646.89,1.14407288]
[1740070501040,3.07218584,647.77,646.89,1.14407288]
[1740070501239,3.07218584,647.76,646.89,1.14407288]
[1740070501438,3.07218584,647.75,646.89,1.14407288]
[1740070501634,3.07218584,647.74,646.89,1.14407288]
[1740070501840,3.07218584,647.73,646.89,1.14407288]
[1740070502138,3.07218584,647.72,646.89,1.14407288]
[1740070502339,3.07218584,647.71,646.89,1.14407288]
[1740070502638,3.07218584,647.7,646.89,1.14407288]
[1740070502838,3.07218584,647.69,646.89,1.14407288]
[1740070503038,3.07218584,647.68,646.89,1.14407288]
[1740070503239,3.07218584,647.67,646.89,1.14407288]
[1740070503542,3.07218584,647.66,646.89,1.14407288]
[1740070503742,2.23300785,647.68,646.93,1.14407288]
[1740070503939,3.07269662,647.67,646.93,1.14407288]
[1740070504139,2.23300785,647.68,646.93,1.14407288]
[1740070504441,3.07294498,647.67,646.93,1.14407288]
[1740070504741,2.23300785,647.68,646.93,1.14407288]
[1740070505240,3.875,647.87,646.93,1.14407288]
[1740070505539,3.07329298,647.86,646.93,1.14407288]
[1740070505740,3.875,647.87,646.73,1.61091223]
[1740070505741,3.07329298,647.85,647.19,1.14407288]
[1740070505932,3.07329298,647.84,647.19,1.14407288]
[1740070506133,3.07329298,647.83,647.19,1.14407288]
[1740070506338,3.07329298,647.82,647.19,1.14407288]
[1740070506541,3.07329298,647.81,647.19,1.14407288]
[1740070506734,3.07329298,647.8,647.19,1.14407288]
[1740070506936,3.07329298,647.79,647.19,1.14407288]
[1740070507142,3.07329298,647.78,647.19,1.14407288]
[1740070507335,5.30778027,647.77,647.19,1.14407288]
[1740070507536,3.07329298,647.76,647.19,1.14407288]
[1740070507737,3.07329298,647.75,647.19,1.14407288]
[1740070507936,3.07329298,647.74,647.19,1.14407288]
[1740070508136,3.07329298,647.73,647.19,1.14407288]
[1740070508341,3.07329298,647.72,647.19,1.14407288]
[1740070508541,3.07329298,647.71,647.19,1.14407288]
[1740070508742,3.07329298,647.7,647.19,1.14407288]
[1740070508942,2.23448729,647.77,647.19,1.14407288]
[1740070509138,3.0736844,647.76,647.19,1.14407288]
[1740070509336,3.0736844,647.75,647.19,1.14407288]
[1740070509635,3.0736844,647.74,647.19,1.14407288]
[1740070509840,3.0736844,647.73,647.19,1.14407288]
[1740070510039,3.0736844,647.72,647.29,1.14407288]
[1740070510241,3.0736844,647.71,647.29,1.14407288]
[1740070510442,3.07400194,647.7,647.29,1.14407288]
[1740070510744,3.875,647.87,647.29,1.14407288]
[1740070510944,3.07425058,647.86,647.29,1.14407288]
[1740070511141,3.07425058,647.85,647.29,1.14407288]
[1740070511344,3.07425058,647.84,647.29,1.14407288]
[1740070511640,3.07425058,647.83,647.29,1.14407288]
[1740070511842,3.07425058,647.82,647.29,1.14407288]
[1740070512043,3.07425058,647.82,647.27,1.14407288]
[1740070512240,3.875,647.87,647.27,1.14407288]
[1740070512843,5.31005368,647.86,647.27,1.14407288]
[1740070513039,3.07467304,647.85,647.27,1.14407288]
[1740070513240,3.07467304,647.84,647.27,1.14407288]
[1740070513444,3.07467304,647.83,647.27,1.14407288]
[1740070513644,3.07467304,647.82,647.27,1.14407288]
[1740070513845,3.07467304,647.81,647.27,1.14407288]
[1740070514046,3.07467304,647.8,647.27,1.14407288]
[1740070514248,3.07467304,647.79,647.27,1.14407288]
[1740070514445,3.07467304,647.78,647.27,1.14407288]
[1740070514748,3.07467304,647.77,647.27,1.14407288]
[1740070515046,3.07467304,647.76,646.79,1.14407288]
[1740070515247,3.07467304,647.75,646.79,1.14407288]
[1740070515447,3.07467304,647.74,646.79,1.14407288]
[1740070515747,3.07467304,647.73,646.79,1.14407288]
[1740070515943,3.07467304,647.72,646.79,1.14407288]
[1740070516146,3.07467304,647.71,646.79,1.14407288]
[1740070516350,3.07467304,647.7,646.79,1.14407288]
[1740070516542,2.23538064,647.72,646.79,1.14407288]
[1740070516749,3.07564773,647.71,646.79,1.14407288]
[1740070516944,3.07564773,647.7,646.7,1.14407288]
[1740070517142,3.875,647.87,646.7,1.14407288]
[1740070517348,3.07625882,647.86,646.7,1.14407288]
[1740070517547,3.07625882,647.85,646.7,1.14407288]
[1740070517850,3.07625882,647.84,646.7,1.14407288]
[1740070518148,3.07625882,647.83,646.7,1.14407288]
[1740070518347,3.07625882,647.82,646.7,1.14407288]
[1740070518542,3.07625882,647.81,646.7,1.14407288]
[1740070518748,3.07625882,647.8,646.7,1.14407288]
[1740070518944,3.07625882,647.79,646.7,1.14407288]
[1740070519149,3.07625882,647.78,646.7,1.14407288]
[1740070519349,3.07625882,647.77,646.71,1.14407288]
[1740070519648,2.23654144,647.77,646.71,1.14407288]
[1740070520144,7.655,647.87,646.71,1.14407288]
[1740070520345,3.07873317,647.86,646.71,1.14407288]
[1740070520649,4.90073317,647.85,646.71,1.14407288]
[1740070520851,3.07873317,647.84,646.71,1.14407288]
[1740070521042,4.06032632,647.85,646.71,1.14407288]
[1740070521247,3.07941585,647.84,646.71,1.14407288]
[1740070521449,4.06032632,647.85,647.05,1.14407288]
[1740070521648,3.0794835,647.84,647.05,1.14407288]
[1740070521950,4.06032632,647.85,647.05,1.14407288]
[1740070522546,1.822,647.85,647.05,1.14407288]
[1740070523850,1.822,647.85,647.12,1.14407288]
[1740070526552,1.822,647.85,647.1,1.14407288]
[1740070528649,1.822,647.85,647.4,1.14407288]
[1740070529050,4.78639654,649.1,647.4,1.14407288]
[1740070529253,3.07690511,648.37,647.4,1.14407288]
[1740070529552,3.07690511,648.36,647.4,1.14407288]
[1740070529754,3.07690511,648.35,647.4,1.14407288]
[1740070529954,3.07690511,648.34,647.4,1.14407288]
[1740070530155,3.38538998,648.33,647.4,1.14407288]
[1740070530448,3.38539474,648.32,647.4,1.14407288]
[1740070530653,3.3853995,648.31,647.4,1.14407288]
[1740070530854,3.38540426,648.3,647.4,1.14407288]
[1740070531053,3.38540902,648.29,647.37,1.14407288]
[1740070531255,3.07690511,648.28,647.37,1.14407288]
[1740070531555,3.38541853,648.27,647.37,1.14407288]
[1740070531750,3.38542329,648.26,647.37,1.14407288]
[1740070531948,3.38542805,648.25,647.37,1.14407288]
[1740070532156,3.38543281,648.24,647.37,1.14407288]
[1740070532452,3.07690511,648.23,647.37,1.14407288]
[1740070532654,3.07690511,648.22,647.37,1.14407288]
[1740070532850,5.31331995,648.21,647.37,1.14407288]
[1740070533054,3.07690511,648.2,647.37,1.14407288]
[1740070533257,3.07690511,648.19,647.37,1.14407288]
[1740070533556,3.38546137,648.18,647.37,1.14407288]
[1740070533757,3.38546613,648.17,647.17,1.14407288]
[1740070533957,3.38547089,648.16,647.17,1.14407288]
[1740070534157,3.38547565,648.15,647.17,1.14407288]
[1740070534354,3.38548041,648.14,647.17,1.14407288]
[1740070534551,3.38548517,648.13,647.17,1.14407288]
[1740070534752,3.38548993,648.12,647.17,1.14407288]
[1740070534952,3.07690511,648.11,647.17,1.14407288]
[1740070535156,3.07690511,648.1,647.17,1.14407288]
[1740070535360,3.07690511,648.09,647.17,1.14407288]
[1740070535655,3.07690511,648.08,647.17,1.14407288]
[1740070535858,3.07690511,648.07,647.17,1.14407288]
[1740070536060,3.07690511,648.06,647.17,1.14407288]
[1740070536354,3.07690511,648.05,647.17,1.14407288]
[1740070536559,2.23641484,648.06,646.8,1.14407288]
[1740070536560,3.07690511,648.04,646.8,1.14407288]
[1740070536758,3.07690511,648.03,646.8,1.14407288]
[1740070536958,3.07690511,648.02,646.8,1.14407288]
[1740070537162,3.07690511,648.01,646.8,1.14407288]
[1740070537355,3.07690511,648.0,646.8,1.14407288]
[1740070537559,3.07690511,647.99,646.8,1.14407288]
[1740070537761,3.07690511,647.98,646.8,1.14407288]
[1740070538060,5.31331995,647.97,646.8,1.14407288]
[1740070538260,3.07690511,647.96,646.8,1.14407288]
[1740070538562,3.07690511,647.95,646.8,1.14407288]
[1740070538763,3.07690511,647.94,646.8,1.14407288]
[1740070538966,3.07690511,647.93,646.88,1.14407288]
[1740070539155,3.07690511,647.92,646.88,1.14407288]
[1740070539462,3.07690511,647.91,646.88,1.14407288]
[1740070539662,3.07690511,647.9,646.88,1.14407288]
[1740070539862,3.07690511,647.89,646.88,1.14407288]
[1740070540065,3.07690511,647.88,646.88,1.14407288]
[1740070540255,3.07690511,647.87,646.88,1.14407288]
[1740070540459,3.07690511,647.86,646.88,1.14407288]
[1740070540661,3.07690511,647.85,646.88,1.14407288]
[1740070540861,3.07690511,647.84,646.88,1.14407288]
[1740070541162,2.23641484,647.9,646.88,1.14407288]
[1740070541362,3.0741903,647.89,646.88,1.14407288]
[1740070541562,3.0741903,647.88,646.88,1.14407288]
[1740070541864,3.0741903,647.87,646.79,1.61078175]
[1740070542060,3.0741903,647.86,646.79,1.61078175]
[1740070542261,3.0741903,647.85,646.79,1.61078175]
[1740070542563,3.0741903,647.84,646.79,1.61078175]
[1740070542763,3.0741903,647.83,646.79,1.61078175]
[1740070542963,3.07386219,647.82,646.74,1.14407288]
[1740070543163,3.07386219,647.81,646.74,1.14407288]
[1740070543458,2.23641484,647.84,646.74,1.14407288]
[1740070543459,3.07386219,647.8,646.74,1.14407288]
[1740070543764,2.23641484,647.84,646.74,1.14407288]
[1740070543961,3.07396413,647.83,647.04,1.14407288]
[1740070544161,3.07396413,647.82,647.04,1.14407288]
[1740070544466,3.07396413,647.81,647.04,1.14407288]
[1740070544662,2.23641484,647.83,647.04,1.14407288]
[1740070544663,3.07396413,647.8,647.04,1.14407288]
[1740070544859,3.07396413,647.79,647.04,1.14407288]
[1740070545061,3.07396413,647.78,647.04,1.14407288]
[1740070545263,3.07396413,647.77,647.04,1.14407288]
[1740070545565,5.31037897,647.76,647.04,1.14407288]
[1740070545766,3.07396413,647.75,647.04,1.14407288]
[1740070545967,3.07396413,647.74,647.04,1.14407288]
[1740070546265,3.07396413,647.73,647.04,1.14407288]
[1740070546465,2.23641484,647.76,647.04,1.14407288]
[1740070546666,3.07304767,647.75,647.04,1.14407288]
[1740070546858,3.07304767,647.74,647.04,1.14407288]
[1740070547063,3.07304767,647.73,647.04,1.14407288]
[1740070547359,2.23641484,647.76,647.04,1.14407288]
[1740070547570,3.07317398,647.75,647.04,1.14407288]